Cogmind - Beta 16 @@@ ROGUE MODE // 2025.11.28 @ 17:53:34 Player: Skysub Result: Self-destructed Performance ------------- Evolutions (2) 1000 Regions Visited (4) 800 Robots Destroyed (0) 0 Value Destroyed (10) 10 Prototype IDs (0) 0 Alien Tech Used (0) 0 Bonus (470) 470 TOTAL SCORE: 2280 Bonus ------- Pacifist 470 Cogmind --------- Core Integrity 504/550 Matter 108/300 Energy 40/100 System Corruption 0% Temperature Cool (1) Movement Flying (40) Location -8/Storage Parts ------- > --- POWER (1) -------- (None) > --- PROPULSION (4) --- Flight Unit > --- UTILITY (4) ------ Advanced Weight Redist. System Structural Scanner Improved Propulsion Shielding Light Armor Plating > --- WEAPON (2) ------- Grenade Launcher > --- INVENTORY (5) ---- Light Treads Coolant Injector Improved Propulsion Shielding Light Armor Plating Light Armor Plating Peak State ------------ > --- POWER ------------ (None) > --- PROPULSION ------- Flight Unit Flight Unit > --- UTILITY ---------- Coolant Injector Structural Scanner Improved Propulsion Shielding Light Armor Plating > --- WEAPON ----------- Grenade Launcher > --- INVENTORY -------- Light Treads Improved Propulsion Shielding Light Armor Plating Light Armor Plating [Rating: 12] Favorites ----------- Power None Propulsion Flight Unit Flight Unit Flight Unit Utility Light Armor Plating Device Structural Scanner Protection Light Armor Plating Weapon Grenade Launcher Launcher Grenade Launcher Build | -11 -10 -9 -8 -8 ------- Run | Yrd Mat Mat Mat Sto Slots Evolved 4 | . . 2 2 . Power . | . . . . . Propulsion 2 | . . 1 1 . Utility 2 | . . 1 1 . Weapon . | . . . . . Parts Attached 9 | . 4 2 1 2 Power . | . . . . . Engine . | . . . . . Core . | . . . . . Reactor . | . . . . . Propulsion 2 | . 2 . . . Treads . | . . . . . Leg . | . . . . . Wheel . | . . . . . Hover . | . . . . . Flight 2 | . 2 . . . Utility 6 | . 2 1 1 2 Device 3 | . . 1 1 1 Storage . | . . . . . Processor . | . . . . . Hackware . | . . . . . Protection 3 | . 2 . . 1 Artifact . | . . . . . Weapon 1 | . . 1 . . Energy Gun . | . . . . . Energy Cannon . | . . . . . Ballistic Gun . | . . . . . Ballistic Cannon . | . . . . . Launcher 1 | . . 1 . . Special Weapon . | . . . . . Impact Weapon . | . . . . . Slashing Weapon . | . . . . . Piercing Weapon . | . . . . . Special Melee Weapon . | . . . . . Unidentified Prototypes . | . . . . . Parts Lost 1 | . . . . 1 Power . | . . . . . Propulsion 1 | . . . . 1 Utility . | . . . . . Weapon . | . . . . . Highest Loss Streak 1 | . . . . 1 To Critical Strikes . | . . . . . Average Backups 4 | 1 3 4 5 4 Power . | . 1 1 1 . Propulsion . | . 1 1 1 1 Utility 1 | . 1 2 2 3 Weapon . | . . . 1 . Tool/Special . | . . . . . Unused Backups 5 | . . . . 5 Power 1 | . . . . 1 Propulsion 1 | . . . . 1 Utility 3 | . . . . 3 Weapon . | . . . . . Tool/Special . | . . . . . Average Slot Usage (%) 45 | . 40 44 45 54 Flight 18 | . 19 22 18 13 Device 6 | . . . 9 18 Protection 19 | . 20 22 18 18 Launcher 1 | . . . . 4 Peak Build Rating 12 | . 4 5 9 12 Average Rating 5 | . 3 4 5 10 On Entrance 3 | . . 4 5 9 Avg Prop Armor Cover (%) . | . . . . . Naked Turns 10 | . 10 . . . Heaviest Build 10 | . 6 7 8 10 Greatest Support 13 | 3 8 8 8 13 Greatest Overweight (x) 2 | . . . . 2 Average Overweight (x) . | . . . . . Largest Inventory Capacity 5 | 5 5 5 5 5 Average Capacity 5 | 5 5 5 5 5 Most Carried 5 | 2 4 5 5 5 Average Carried 4 | 1 3 4 5 4 Final Capacity 5 | 5 5 5 5 5 Final Carried 5 | 2 4 5 5 5 Class Distribution -------------------- 100% | Mutant Dominant Class ---------------- Mutant | -10/Materials Mutant | -9/Materials Mutant | -8/Materials Mutant | -8/Storage Resources | -11 -10 -9 -8 -8 ----------- Run | Yrd Mat Mat Mat Sto Matter Collected 133 | 133 . . . . Remotely . | . . . . . Salvage Created . | . . . . . Parts . | . . . . . Haulers Intercepted . | . . . . . Recyclers Shooed . | . . . . . Parts Field Recycled . | . . . . . Retrieved Matter . | . . . . . Parts Self-Destructed . | . . . . . Prevented . | . . . . . Parts Restored . | . . . . . Kills | -11 -10 -9 -8 -8 ------- Run | Yrd Mat Mat Mat Sto Combat Hostiles Destroyed . | . . . . . Classes Destroyed . | . . . . . Best Kill Streak . | . . . . . Combat Bots Only . | . . . . . Max Kills in Single Turn . | . . . . . Gunslinging . | . . . . . Exploded . | . . . . . Melee . | . . . . . Uniques/NPCs Destroyed . | . . . . . Combat | -11 -10 -9 -8 -8 -------- Run | Yrd Mat Mat Mat Sto Hostile Shots Fired 63 | . 11 30 1 21 Missed 37 | . 7 18 . 12 Hits 26 | . 4 12 1 9 Projectile 26 | . 4 12 1 9 Damage Taken 301 | . 49 112 10 130 Core 120 | . 27 47 . 46 Absorbed by Shields . | . . . . . Redirected to Shielding 21 | . . . . 21 Core Remaining (%) 92 | 100 89 88 . . Volleys Fired 3 | . . 2 . 1 Largest 1 | . . 1 . 1 Hottest 30 | . . 30 . 30 Shots Fired 3 | . . 2 . 1 Gun . | . . . . . Cannon . | . . . . . Launcher 3 | . . 2 . 1 Special . | . . . . . Kinetic . | . . . . . Thermal . | . . . . . Explosive 3 | . . 2 . 1 Electromagnetic . | . . . . . Robot Hit Streak . | . . . . . Robot Miss Streak . | . . . . . Penetration Max . | . . . . . Secondary Targets . | . . . . . Shots Hit Robots . | . . . . . Core Hits . | . . . . . Critical Kills . | . . . . . Critical Parts Destroyed . | . . . . . Critical Strikes . | . . . . . Melee Attacks . | . . . . . Impact . | . . . . . Slashing . | . . . . . Piercing . | . . . . . Sneak Attacks . | . . . . . Combat Hostiles . | . . . . . Follow-up Attacks . | . . . . . Damage Inflicted . | . . . . . Guns . | . . . . . Cannons . | . . . . . Explosions . | . . . . . Melee . | . . . . . Ramming . | . . . . . Kinetic . | . . . . . Thermal . | . . . . . Explosive . | . . . . . Electromagnetic . | . . . . . Impact . | . . . . . Slashing . | . . . . . Piercing . | . . . . . Highest Corruption 1 | . . 1 . . Average Corruption 1 | . . 1 . . Corruption Purged . | . . . . . Corruption Blocked . | . . . . . Effects 1 | . . 1 . . Message Errors 1 | . . 1 . . Overload Shots . | . . . . . Overflow Damage 1 | . . . . 1 Projectiles . | . . . . . Explosions 1 | . . . . 1 Melee . | . . . . . Knockbacks . | . . . . . Impact . | . . . . . Kinetic . | . . . . . Secondary . | . . . . . Self-Inflicted Damage 34 | . . 2 . 32 Shots 2 | . . 1 . 1 Rammed . | . . . . . Targets Rammed . | . . . . . Kicked . | . . . . . Crushed . | . . . . . Highest Temperature . | . . . . . Average Temperature . | . . . . . Received Heat Transfer 84 | . 27 30 . 27 Siege Activations . | . . . . . Martial Activations . | . . . . . Shielding Activations . | . . . . . Robots Disrupted . | . . . . . Combat Hostiles . | . . . . . Robots Corrupted . | . . . . . Combat Hostiles . | . . . . . Parts Fried . | . . . . . Impact Corruptions . | . . . . . Robots Melted . | . . . . . Combat Hostiles . | . . . . . Parts Melted . | . . . . . Heat Transferred . | . . . . . Parts Sabotaged . | . . . . . Parts Stolen . | . . . . . Parts Stripped . | . . . . . Power Chain Reactions . | . . . . . Alert | -11 -10 -9 -8 -8 ------- Run | Yrd Mat Mat Mat Sto Maximum Alert Level . | . . . . . Low Security (%) 100 | 100 100 100 100 100 Level 1 . | . . . . . Level 2 . | . . . . . Level 3 . | . . . . . Level 4 . | . . . . . Level 5 . | . . . . . High Security . | . . . . . Max Security . | . . . . . Peak Influence 26 | . 26 8 15 21 Initial 1 | . . 1 . 1 Average 5 | . 5 1 6 10 Influence Increases 129 | . 26 13 20 70 Successful Hack 25 | . 11 5 5 4 Disable Machine 15 | . . . . 15 Destroy Structure 14 | . . 8 . 6 Partial Spotted 45 | . . . 15 30 Lose Combat Pursuer 30 | . 15 . . 15 Influence Decreases 98 | . 20 19 15 44 Entered New Map 9 | . . 5 . 4 Time Decay 79 | . 20 14 15 30 Lost Part 10 | . . . . 10 Squads Dispatched 8 | . 3 1 1 3 Investigation 4 | . 1 1 1 1 Extermination . | . . . . . Reinforcement 4 | . 2 . . 2 Assault . | . . . . . Garrison . | . . . . . Intercept . | . . . . . Searches Triggered . | . . . . . Construction Impeded . | . . . . . Haulers Reinforced . | . . . . . Active Scanning Responses . | . . . . . Cargo Convoy Interrupts . | . . . . . Stealth | -11 -10 -9 -8 -8 --------- Run | Yrd Mat Mat Mat Sto Distress Signals 4 | . 1 1 . 2 Communications Jammed . | . . . . . Distress Signals . | . . . . . Times Spotted 48 | . 13 8 5 22 Peak Tracking Total 22 | . 10 8 6 22 Tactical Retreats 2 | . 1 . . 1 Traps | -11 -10 -9 -8 -8 ------- Run | Yrd Mat Mat Mat Sto Traps Triggered . | . . . . . Indirectly . | . . . . . Trap Hack Attempts . | . . . . . Triggered . | . . . . . Disarmed . | . . . . . Reprogrammed . | . . . . . Reused . | . . . . . Traps Extracted . | . . . . . Installed . | . . . . . Triggered . | . . . . . Machines | -11 -10 -9 -8 -8 ---------- Run | Yrd Mat Mat Mat Sto Machines Disabled 1 | . . . . 1 Max in Single Turn 1 | . . . . 1 Machines Repaired . | . . . . . Machines Dismantled . | . . . . . Machines Sabotaged . | . . . . . Overloaded Fab Kills . | . . . . . Hacking | -11 -10 -9 -8 -8 --------- Run | Yrd Mat Mat Mat Sto Machines Accessed 6 | . 1 1 1 3 Terminals 6 | . 1 1 1 3 Fabricators . | . . . . . Repair Stations . | . . . . . Recycling Units . | . . . . . Scanalyzers . | . . . . . Garrison Access . | . . . . . Total Hacks 21 | . 8 3 3 7 Successful 7 | . 3 1 1 2 Failed 14 | . 5 2 2 5 Catastrophic 2 | . 1 . . 1 Database Lockouts . | . . . . . Manual 19 | . 8 3 3 5 Terminals 21 | . 8 3 3 7 Fabricators . | . . . . . Repair Stations . | . . . . . Recycling Units . | . . . . . Scanalyzers . | . . . . . Garrison Access . | . . . . . Terminal Hacks 4 | . 2 . . 2 Open Door 1 | . . . . 1 Terminal Index 3 | . 2 . . 1 Fabricator Hacks . | . . . . . Repair Station Hacks . | . . . . . Recycling Unit Hacks . | . . . . . Scanalyzer . | . . . . . Garrison Access Hacks . | . . . . . Unauthorized Hacks 3 | . 1 1 1 . Terminals 3 | . 1 1 1 . Botnet 3 | . 1 1 1 . Fabricators . | . . . . . Repair Stations . | . . . . . Recycling Units . | . . . . . Scanalyzers . | . . . . . Garrison Access . | . . . . . Data Cores Recovered . | . . . . . Used . | . . . . . Hacking Detections 5 | . 1 1 1 2 Full Trace Events 5 | . 1 1 1 2 Feedback Events 1 | . . 1 . . Corruption 1 | . . 1 . . Feedback Blocked . | . . . . . Robot Schematics Acquired . | . . . . . Robots Built . | . . . . . Authchips . | . . . . . Time . | . . . . . Total Robot Build Rating . | . . . . . Part Schematics Acquired . | . . . . . Parts Built . | . . . . . Authchips . | . . . . . Time . | . . . . . Total Part Build Rating . | . . . . . Part Studies Acquired . | . . . . . Parts Repaired . | . . . . . Time . | . . . . . Parts Recycled . | . . . . . Recycled Matter . | . . . . . Retrieved Matter . | . . . . . Retrieved Components . | . . . . . Parts Scanalyzed . | . . . . . Part Schematics Acquired . | . . . . . Parts Damaged . | . . . . . Bothacking | -11 -10 -9 -8 -8 ------------ Run | Yrd Mat Mat Mat Sto Used RIF Installer . | . . . . . Robots Hacked . | . . . . . Non-combat . | . . . . . Combat . | . . . . . Robot Hacks Applied . | . . . . . Relay Couplers Released . | . . . . . Fabnet Peak Effective % . | . . . . . Robots Rewired . | . . . . . Allies Hacked . | . . . . . Hacks Repelled . | . . . . . Allies | -11 -10 -9 -8 -8 -------- Run | Yrd Mat Mat Mat Sto Total Allies . | . . . . . Largest Group . | . . . . . Highest-Rated Group . | . . . . . Highest-Rated Ally . | . . . . . Total Orders . | . . . . . Ally Attacks . | . . . . . Total Damage . | . . . . . Kills . | . . . . . Allies Corrupted . | . . . . . Allies Melted . | . . . . . Intel | -11 -10 -9 -8 -8 ------- Run | Yrd Mat Mat Mat Sto Active Infowar (turns) 103 | . . 7 49 47 Structural 103 | . . 7 49 47 Robot Analysis Total . | . . . . . Derelict Logs Recovered . | . . . . . Drone Launches . | . . . . . Drone Recoveries . | . . . . . Exploration | -11 -10 -9 -8 -8 ------------- Run | Yrd Mat Mat Mat Sto Turns Passed 306 | 13 103 70 49 71 Spaces Moved 697 | 21 242 167 129 138 Core 54 | 21 32 . . 1 Treads . | . . . . . Legs . | . . . . . Wheels . | . . . . . Hover . | . . . . . Flight 643 | . 210 167 129 137 Fastest Speed 37 | 50 37 37 37 37 Average Speed 39 | 50 38 37 37 44 Slowest Speed 200 | 50 50 37 37 200 Overloaded Moves . | . . . . . Propulsion Burnouts . | . . . . . Robots Hopped 23 | . 5 5 . 13 Potential Cave-ins . | . . . . . Cave-ins Triggered . | . . . . . Exploration Rate (%) 27 | 3 50 23 21 40 Regions Visited 4 Branch Regions 1 Pre-discovered Areas . | . . . . . Known Exits Taken . | . . . . . Unknown Exits Taken 4 | 1 1 1 1 . Scrap Searched . | . . . . . Spaces Dug 6 | . . 6 . . Terrain Destroyed 17 | . . 12 . 5 Melee . | . . . . . Projectile . | . . . . . AOE 17 | . . 12 . 5 Terrain Rammed . | . . . . . Walls Destroyed . | . . . . . Machines Disabled . | . . . . . Actions | -11 -10 -9 -8 -8 --------- Run | Yrd Mat Mat Mat Sto Total 695 | 22 243 167 129 134 Wait . | . . . . . Move 653 | 20 231 156 128 118 Hop 17 | . 5 5 . 7 Pick Up 8 | 2 3 1 . 2 Fast Attach 6 | . 3 1 1 1 Attach 3 | . 1 1 . 1 Detach 2 | . . 1 . 1 Swap 1 | . . . . 1 Drop 2 | . . . . 2 Fire 3 | . . 2 . 1 Melee . | . . . . . Ram . | . . . . . Kick . | . . . . . Crush . | . . . . . Escape Stasis . | . . . . . Rewire . | . . . . . Trap . | . . . . . Miscellaneous . | . . . . . Route ------- -11/Scrapyard -10/Materials (discovered 2 exits: *Mat / [*Min]) -9/Materials -8/Materials -8/Storage History --------- Turn | Location | Event 6 | -11/Scrapyard | Discovered new exit (range 15) 14 | -11/Scrapyard | Entered Materials 71 | -10/Materials | Discovered new exit (range 6) 114 | -10/Materials | Discovered new exit (range 8) 117 | -10/Materials | Entered another Materials area 117 | -9/Materials | Evolved 2 slots: Propulsion x1, Utility x1 185 | -9/Materials | Discovered new exit (range 6) 187 | -9/Materials | Entered another Materials area 187 | -8/Materials | Evolved 2 slots: Propulsion x1, Utility x1 229 | -8/Materials | Discovered new exit (range 15) 236 | -8/Materials | Entered Storage 303 | -8/Storage | Build established: Mutant 307 | -8/Storage | Self-destructed Last Messages --------------- 00261_ W-25 Informer sends out distress signal. 00265_ O-24 Administrator sends out distress signal. 00265_ O-24 Administrator: "IFF HANDSHAKE FAILED. SECURING TERMINAL." 00269_ Storage Shell breached. 00269_ Flight Unit destroyed. 00269_ Destroyed Flight Unit. 00275_ ALERT: Hostiles spotted, dispatching reinforcements to Terminal S004. 00282_ Acquired Adv. Weight Redist. System. 00284_ U-05 Engineer builds a Wall. 00285_ U-05 Engineer destroyed. 00287_ Connecting with Terminal... >>Index(Terminals) Found 9 terminals. Downloaded coordinate data. 00296_ ALERT: Hostiles spotted, dispatching reinforcements to Terminal S009. 00307_ Connecting with Terminal... 00307_ ALERT: Suspicious activity at Terminal S003. Dispatching Investigation squad. Map ----- +----------------------------------------------------+ | | | | | | | | | | | | | | | | | | | | | | | | | | | ??????????????????????????????????????????? | | ??????????????????????????????????????????? | | ??????????????????????????????????????????? | | ??????????????????????????????????????????? | | ??????????????????????????????????????????? | | ??????????????????????????????????????????? | | ??????????????????????????????????????????? | | ??????????????????????????????????????????? | | ??????????????????????????????????????????? | | ??????????????????????????????????????????? | | ???????????????????########???????????????? | | ?????????????????### T #???????????????? | | ?????????????????#"" @#???????????????? | | ?????????????????#"Y """ #???????????????? | | ??????????????????"" """ #####+#####?????? | | ??????????????????## """ + #??? | | ???????????????????# # ########????? | | ???????????????????####+### # #????? | | ??????????????# / / #????? | | ??????????????# [ # # !! #????? | | ??????????????????????# """ # !! #????? | | ??????????????????????# """ # !! #????? | | ??????????????????????# """ # #????? | | ??????????????????????# #/######????? | | ?????????????????????? # #?????????? | | ????????????????????###/####### #?????????? | | ?????????????????#### #??# #?????????? | | ?????????????????#""" #??# #?????????? | | ??????????????#"G """ #### ##### #?? | | ??????????????""" """ + #?? | | == ??????????????## """ #### #####! #?? | | = ??????????????# #??# #?????????? | | #################/####??# #?????????? | | #?????#+#?????????? | | ##??# ########## #?????????????????? | | ##??# #? #?# #?????????????????? | | ##??# ]] # #?# #?????????????????? | +----------------------------------------------------+ Best States ------------- Heat Dissipation 31 Coolant Potential 65 Energy Generation 5 Energy Capacity 100 Matter Stores 233 Matter Capacity 300 Sight Range 16 Terrain Scan Density 10 Additional Mass Support 9 Armor Coverage 300 Propulsion Shielding 66 Evasion (%) 62 Item Schematics ----------------- None Robot Schematics ------------------ None Fabricated ------------ Nothing Repaired ---------- Nothing Studied --------- None Alien Tech Used ----------------- None Achievements -------------- None Challenges ------------ None Game ------ Seed SalvagePointyCharger Manual? 0 Play Time 00:06:50 Cumulative 294.2 hours Start 2025.11.28 @ 17:48:07 End 2025.11.28 @ 17:53:34 Sessions 1 Manual Loads 0 Difficulty Rogue Special Mode None Game No. 367 Rogue 367 Adventurer 0 Explorer 0 Win Type - Total 20 Types 13/0/3/1/1/0/0/1/0/1 Lore% 77 Gallery% 75 Achievement% 57 Wizard Run 0 Options --------- Layout 1 ASCII 0 Keyboard 1 Movement Numpad Keybinds 0 Fullscreen 2 Font 32/SmallcapsGlow Map View 77x35 Zoom Use 0% Tactical HUD 1 Map Filters NONE Filters NONE Steam 1 RUN: 38666614-82e1-45a9-bafd-f79274f621bf